bitfinex/quotes_SOLUSD_20250307
["timestamp","ask_amount","ask_price","bid_price","bid_amount"]
[1741379938449,46.48415646,145.12,145.06,46.48415646]
[1741379938648,4.1328,145.18,145.07,20.0]
[1741379938856,47.80899793,145.19,145.12,46.48415646]
[1741379939046,46.51715646,145.19,145.12,46.48415646]
[1741379939250,46.51715646,145.19,145.16,46.48415646]
[1741379939251,0.033,145.19,145.16,46.48415646]
[1741379939564,0.033,145.19,145.17,46.48415646]
[1741379939871,0.033,145.19,145.13,13.0498]
[1741379940045,10.46,145.3,145.13,13.0498]
[1741379940046,0.033,145.32,145.22,48.9666]
[1741379940247,0.033,145.32,145.3,46.48415646]
[1741379940449,0.033,145.32,145.31,46.48415646]
[1741379940863,50.64605646,145.32,145.22,7.7966]
[1741379941046,46.48415646,145.24,145.16,10.48]
[1741379941257,20.0,145.27,145.15,52.64365646]
[1741379941589,33.10744886,145.25,145.13,1.6371]
[1741379941891,46.48415646,145.16,145.09,52.64365646]
[1741379942190,46.48415646,145.1,145.03,46.48415646]
[1741379942346,4.1299,145.28,145.04,23.16457289]
[1741379942553,47.23648649,145.27,145.2,46.48415646]
[1741379942884,10.3552,145.32,145.21,1.03294277]
[1741379942885,0.033,145.32,145.21,1.03294277]
[1741379943181,0.033,145.32,145.22,18.64964886]
[1741379943588,0.033,145.32,145.2,41.17]
[1741379943589,0.78533003,145.32,145.2,6.887]
[1741379943898,46.48415646,145.3,145.24,46.48415646]
[1741379944058,0.78533003,145.32,145.2,6.887]
[1741379944385,0.033,145.32,145.21,19.68223001]
[1741379944580,0.033,145.32,145.27,46.48415646]
[1741379944581,0.78533003,145.32,145.27,46.48415646]
[1741379944882,0.78533003,145.32,145.26,46.48415646]
[1741379945190,47.26948649,145.32,145.25,46.48415646]
[1741379945398,47.26948649,145.32,145.26,46.48415646]
[1741379945580,0.78533003,145.32,145.26,46.48415646]
[1741379945997,0.033,145.32,145.27,46.48415646]
[1741379946300,46.51715646,145.32,145.25,46.48415646]
[1741379946503,46.48415646,145.29,145.22,56.94415646]
[1741379946793,47.23648649,145.31,145.24,46.48415646]
[1741379946996,0.033,145.32,145.22,10.46]
[1741379947197,0.033,145.32,145.27,46.48415646]
[1741379947363,46.48415646,145.31,145.24,46.48415646]
[1741379947771,46.48415646,145.31,145.25,46.48415646]
[1741379948475,50.61335646,145.31,145.25,46.48415646]
[1741379948681,46.48415646,145.28,145.22,46.48415646]
[1741379948921,0.75233003,145.3,145.24,46.48415646]
[1741379949108,46.48415646,145.25,145.11,6.44]
[1741379949416,0.75233003,145.27,145.15,20.0]
[1741379949707,0.75233003,145.27,145.21,46.48415646]
[1741379949885,47.23648649,145.27,145.2,46.48415646]
[1741379950083,47.23648649,145.27,145.21,46.48415646]
[1741379950274,4.1302,145.27,145.21,46.48415646]
[1741379950475,4.1302,145.27,145.15,24.1129]
[1741379950476,51.36668649,145.27,145.15,6.8894]
[1741379950777,46.48415646,145.27,145.2,46.48415646]
[1741379951000,47.23648649,145.26,145.19,46.48415646]
[1741379951305,47.23648649,145.26,145.2,46.48415646]
[1741379951493,46.48415646,145.24,145.18,46.48415646]
[1741379951696,0.75233003,145.26,145.22,46.48415646]
[1741379951880,47.23648649,145.3,145.21,10.46]
[1741379952084,46.48415646,145.27,145.2,46.48415646]
[1741379952289,47.23648649,145.26,145.16,10.44]
[1741379952471,46.48415646,145.25,145.18,46.48415646]
[1741379952679,47.23648649,145.24,145.18,46.48415646]
[1741379952875,46.48415646,145.21,145.11,52.92415646]
[1741379953079,46.48415646,145.18,145.11,52.92415646]
[1741379953581,46.48415646,145.19,145.12,46.48415646]
[1741379953917,46.48415646,145.16,145.1,46.48415646]
[1741379954077,0.75233003,145.16,145.1,46.48415646]
[1741379954284,46.48415646,145.12,145.05,6.1095]
[1741379954497,46.48415646,145.1,145.05,6.1095]
[1741379954909,46.48415646,145.12,145.05,52.59365646]
[1741379955092,0.75233003,145.11,145.05,52.59365646]
[1741379955414,46.48415646,145.1,145.03,46.48415646]
[1741379955703,46.48415646,145.1,145.02,0.03]
[1741379955882,50.62065646,145.05,145.02,0.03]
[1741379956079,47.23648649,145.04,145.02,0.03]
[1741379956275,46.48415646,145.03,145.02,0.03]
[1741379956497,46.48415646,145.03,144.88,1.508]
[1741379956703,46.48415646,144.97,144.9,46.48415646]
[1741379957008,46.48415646,144.95,144.88,1.508]
[1741379957504,66.48415646,144.92,144.81,46.48415646]
[1741379957708,46.48415646,144.92,144.8,6.906]
[1741379957913,0.75233003,144.94,144.82,6.9049]
[1741379958082,0.75233003,144.94,144.91,46.51415646]
[1741379958415,47.23648649,145.02,144.93,46.48415646]
[1741379958626,0.75233003,145.02,144.95,46.48415646]
[1741379958941,0.75233003,145.04,144.97,46.48415646]
[1741379959079,47.23648649,145.11,144.97,20.0]
[1741379959281,47.23648649,145.11,144.98,18.64964886]
[1741379959485,4.1342,145.13,145.08,46.48415646]
[1741379959486,0.75233003,145.13,145.08,46.48415646]
[1741379959782,0.75233003,145.17,145.04,56.86415646]
[1741379959986,0.75233003,145.2,145.05,7.6804]
[1741379960405,20.75233003,145.2,145.05,7.6804]
[1741379960620,20.0,145.16,145.05,7.6804]
[1741379960830,46.48415646,145.11,144.98,6.1488]
[1741379961118,18.64964886,145.09,144.98,52.63295646]
[1741379961309,46.48415646,145.06,145.0,46.48415646]
[1741379961511,46.48415646,145.06,144.98,6.1488]
[1741379961709,46.48415646,145.06,144.99,46.48415646]
[1741379961911,0.75233003,145.05,144.99,46.48415646]
[1741379962209,0.75233003,145.06,145.0,46.48415646]
[1741379962513,0.75233003,145.06,144.93,17.2796]
[1741379962514,0.75233003,145.06,144.93,6.9297]
[1741379962726,0.75233003,145.06,145.0,46.48415646]
[1741379962914,46.48415646,145.05,144.93,6.9297]
[1741379963222,47.23648649,145.04,144.97,46.48415646]
[1741379963427,46.48415646,145.03,144.96,46.48415646]
[1741379963604,47.23648649,145.02,144.95,46.48415646]
[1741379963804,47.23648649,145.02,144.93,46.51415646]
[1741379963805,46.48415646,144.99,144.93,46.51415646]
[1741379964022,46.48415646,144.99,144.93,0.03]
[1741379964325,46.48415646,144.99,144.93,46.51415646]
[1741379964514,47.23648649,145.02,144.95,46.48415646]
[1741379964822,46.48415646,144.97,144.93,0.03]
[1741379965023,46.48415646,144.94,144.93,0.03]
[1741379965614,65.13380532,144.94,144.93,0.03]
[1741379965813,65.88613535,144.94,144.93,0.03]
[1741379966100,65.88613535,144.94,144.91,0.03]
[1741379966101,18.64964886,144.93,144.91,0.03]
[1741379966306,65.88613535,144.92,144.91,0.03]
[1741379966531,47.23648649,144.92,144.91,0.03]
[1741379967006,112.37029181,144.92,144.91,0.03]
[1741379967505,65.88613535,144.92,144.91,0.03]
[1741379968534,65.88613535,144.92,144.82,46.48415646]
[1741379968535,18.64964886,144.91,144.78,6.2674]
[1741379968825,46.48415646,144.85,144.78,6.2674]
[1741379969013,46.48415646,144.85,144.78,52.75155646]
[1741379969211,0.75233003,144.87,144.78,13.1744]
[1741379969416,0.75233003,144.91,144.83,46.48415646]
[1741379969726,0.75233003,144.91,144.85,46.48415646]
[1741379969938,46.48415646,144.89,144.82,46.48415646]
[1741379970114,46.48415646,144.89,144.83,46.48415646]
[1741379970432,46.48415646,144.86,144.8,46.48415646]
[1741379970605,0.75233003,144.89,144.83,46.48415646]
[1741379970930,4.89343003,144.89,144.78,13.1744]
[1741379971315,46.48415646,144.88,144.82,46.48415646]
[1741379971630,4.89343003,144.89,144.84,46.48415646]
[1741379971941,46.48415646,144.91,144.78,13.1744]
[1741379972125,46.48415646,144.87,144.78,13.1744]
[1741379972433,47.23648649,144.9,144.83,46.48415646]
[1741379972610,4.141,144.89,144.83,46.48415646]
[1741379972810,4.141,144.89,144.84,46.48415646]
[1741379973134,0.75233003,144.95,144.88,46.48415646]
[1741379973303,0.75233003,145.0,144.91,46.48415646]
[1741379973511,46.48415646,144.98,144.92,46.48415646]
[1741379973706,47.23648649,144.98,144.91,46.48415646]
[1741379973936,46.48415646,144.92,144.82,24.1678]
[1741379974105,46.48415646,144.92,144.85,46.48415646]
[1741379974310,46.48415646,144.92,144.82,34.3878]
[1741379974311,19.40197889,144.96,144.87,46.48415646]
[1741379974613,0.75233003,145.0,144.93,46.48415646]
[1741379974812,0.75233003,145.0,144.95,46.48415646]
[1741379975017,46.48415646,144.99,144.92,46.48415646]
[1741379975308,4.1376,145.01,144.91,46.48415646]
[1741379975309,47.23648649,144.98,144.91,46.48415646]
[1741379975514,0.75233003,145.0,144.9,6.6145]
[1741379975717,0.78533003,145.03,144.98,46.48415646]
[1741379975918,0.033,145.03,144.94,312.0]
[1741379976128,46.48415646,145.0,144.9,8.2291]
[1741379976304,47.23648649,144.99,144.9,8.2291]
[1741379976630,0.033,145.03,144.98,46.48415646]
[1741379976925,4.1701,145.03,144.94,6.8994]
[1741379977132,47.23648649,145.02,144.96,46.48415646]
[1741379977433,0.75233003,145.02,144.96,46.48415646]
[1741379977630,47.23648649,145.02,144.96,46.48415646]
[1741379978322,0.033,145.03,144.99,46.48415646]
[1741379978515,0.033,145.03,144.98,46.48415646]
[1741379978841,50.65425646,145.03,144.97,46.48415646]
[1741379979022,4.1701,145.03,144.97,46.48415646]
[1741379979328,0.033,145.03,144.98,46.48415646]
[1741379979534,47.23648649,145.02,144.95,46.48415646]
[1741379980024,4.1701,145.03,144.97,46.48415646]
[1741379980232,4.1701,145.03,144.98,46.48415646]
[1741379980430,0.033,145.03,144.98,46.48415646]
[1741379980627,0.033,145.03,145.0,46.48415646]
[1741379980827,0.033,145.03,145.02,46.48415646]
[1741379981023,46.48415646,145.15,145.03,6.4715]
[1741379981219,47.23648649,145.17,145.11,46.48415646]
[1741379981532,46.48415646,145.14,145.04,46.48415646]
[1741379981831,0.75233003,145.14,145.05,10.18]
[1741379982020,4.92003003,145.12,145.05,10.18]
[1741379982216,46.48415646,145.1,145.05,10.18]
[1741379982421,4.92003003,145.12,145.03,8.0722]
[1741379982422,46.48415646,145.06,145.03,6.4715]
[1741379982622,46.48415646,145.07,145.03,6.4715]
[1741379983135,46.48415646,145.07,145.01,46.48415646]
[1741379983334,0.75233003,145.1,145.0,46.48415646]
[1741379983546,46.48415646,145.07,145.0,46.48415646]
[1741379983839,46.48415646,145.07,144.98,10.2]
[1741379984024,46.48415646,145.06,144.98,10.2]
[1741379984221,4.1365,145.05,145.0,46.48415646]
[1741379984531,46.48415646,145.03,144.97,6.4715]
[1741379984708,0.033,145.12,145.02,46.48415646]
[1741379984907,46.48415646,145.11,145.04,46.48415646]
[1741379985135,0.033,145.07,145.05,46.48415646]
[1741379985437,0.033,145.07,145.01,46.48415646]
[1741379985626,46.51715646,145.07,144.97,13.3693]
[1741379985815,47.23648649,145.06,144.99,46.48415646]
[1741379986015,46.51715646,145.07,145.01,46.48415646]
[1741379986211,0.033,145.07,144.97,87.23835646]
[1741379986415,0.033,145.07,145.05,46.48415646]
[1741379986643,0.033,145.07,144.98,18.64964886]
[1741379986644,0.033,145.07,145.04,46.48415646]
[1741379987446,0.033,145.07,145.0,6.8965]
[1741379987621,46.51715646,145.07,145.0,46.48415646]
[1741379987939,0.033,145.07,145.02,46.48415646]
[1741379988318,0.033,145.07,145.03,46.48415646]
[1741379988519,0.033,145.07,145.04,46.48415646]
[1741379988949,0.033,145.07,145.03,46.48415646]
[1741379989126,0.033,145.07,145.04,46.48415646]
[1741379989335,0.033,145.07,144.99,6.8968]
[1741379989515,50.65305646,145.07,145.0,46.48415646]
[1741379989714,46.48415646,145.06,144.99,46.48415646]
[1741379989939,0.033,145.07,145.02,46.48415646]
[1741379990524,0.033,145.07,145.04,46.48415646]
[1741379991131,0.033,145.07,145.05,46.48415646]
[1741379991449,0.033,145.07,145.06,53.37775646]
[1741379994832,0.033,145.07,145.05,16.8741]
[1741379995028,0.033,145.07,145.04,46.48415646]
[1741379995233,0.033,145.07,145.03,46.48415646]
[1741379995731,0.033,145.07,145.04,46.48415646]
[1741379995936,0.033,145.07,145.05,46.48415646]
[1741379996133,0.033,145.07,145.06,46.48415646]
[1741379996332,0.033,145.07,145.01,24.1361]
[1741379996333,0.033,145.07,145.05,46.48415646]
[1741379996528,0.033,145.07,145.01,24.1361]
[1741379996529,0.033,145.07,145.03,46.48415646]
[1741379996743,0.033,145.07,145.04,46.48415646]
[1741379996933,0.033,145.07,145.06,46.48415646]
[1741379997850,0.033,145.07,145.06,53.37775646]
[1741379998044,0.033,145.07,145.03,312.03]
[1741379998244,46.48415646,145.04,145.03,0.03]
[1741379998635,92.96831292,145.04,145.03,0.03]
[1741379999333,46.48415646,145.04,145.03,0.03]
[1741379999735,0.78533003,145.07,145.03,0.03]
[1741380000050,46.51715646,145.07,145.03,0.03]
[1741380000251,0.033,145.07,145.03,0.03]
[1741380000844,0.033,145.07,145.05,46.48415646]
[1741380001145,4.169,145.07,145.03,0.03]
[1741380001329,0.033,145.07,145.05,46.48415646]
[1741380001649,0.033,145.07,145.03,0.03]
[1741380002240,0.033,145.07,145.03,1.5752]
[1741380002546,0.033,145.07,145.06,46.48415646]
[1741380002844,0.033,145.12,145.06,46.48415646]
[1741380003142,0.033,145.12,145.07,6.6589]
[1741380003343,0.033,145.12,145.11,46.48415646]
[1741380003738,0.033,145.12,145.09,9.86]
[1741380003936,0.033,145.12,145.08,6.8923]
[1741380004131,0.033,145.12,145.08,53.37665646]
[1741380004345,0.033,145.12,145.11,46.48415646]
[1741380004736,4.1658,145.18,145.08,6.8925]
[1741380005050,46.48415646,145.16,145.1,46.48415646]
[1741380005349,4.1658,145.18,145.11,46.48415646]
[1741380005648,0.033,145.18,145.09,9.86]
[1741380005847,46.51715646,145.18,145.11,46.48415646]
[1741380006032,46.48415646,145.15,145.09,9.86]
[1741380006234,46.48415646,145.14,145.09,9.86]
[1741380006441,46.51715646,145.18,145.12,46.48415646]
[1741380006641,0.78533003,145.18,145.07,6.6589]
[1741380007043,0.033,145.18,145.07,13.552]
[1741380007242,0.033,145.18,145.11,20.0]
[1741380007431,0.033,145.18,145.1,20.0]
[1741380007625,0.033,145.18,145.11,9.94]
[1741380008057,0.033,145.18,145.14,46.48415646]
[1741380008258,0.033,145.18,145.17,46.48415646]
[1741380008750,0.033,145.18,145.14,1.5699]
[1741380009152,0.033,145.18,145.17,46.48415646]
[1741380009457,0.033,145.18,145.17,92.96831292]
[1741380009754,0.033,145.22,145.18,6.2387]
[1741380010131,0.033,145.22,145.14,1.5699]
[1741380010749,46.48415646,145.15,145.07,46.48415646]
[1741380010934,46.48415646,145.13,145.02,28.8228]
[1741380011136,0.75233003,145.17,145.08,46.48415646]
[1741380011334,46.48415646,145.12,145.02,11.5846]
[1741380011549,0.75233003,145.17,145.03,6.925]
[1741380011731,0.75233003,145.17,145.04,18.64964886]
[1741380011931,20.0,145.15,145.03,0.03]
[1741380012143,4.88623003,145.14,145.03,0.03]
[1741380012345,0.75233003,145.15,145.03,0.03]
[1741380012651,46.48415646,145.14,145.07,46.48415646]
[1741380012851,46.48415646,145.13,145.06,46.48415646]
[1741380013252,46.48415646,145.14,145.07,46.48415646]
[1741380014248,0.033,145.22,145.11,46.48415646]
[1741380014453,0.033,145.22,145.16,46.48415646]
[1741380014632,0.033,145.22,145.14,9.96]
[1741380014834,0.033,145.22,145.16,18.64964886]
[1741380015053,0.033,145.22,145.21,46.48415646]
[1741380015461,0.033,145.32,145.22,18.64964886]
[1741380015655,0.033,145.32,145.3,46.48415646]
[1741380015841,0.033,145.32,145.27,46.48415646]
[1741380016036,0.033,145.32,145.31,46.48415646]
[1741380016445,0.033,145.32,145.27,6.2261]
[1741380016740,0.033,145.32,145.25,16.9446]
[1741380016949,0.033,145.32,145.26,1.03223386]
[1741380017155,0.033,145.32,145.31,46.48415646]
[1741380017458,0.033,145.36,145.31,111.61796178]
[1741380017754,0.033,145.36,145.35,18.64964886]
[1741380018066,0.033,145.36,145.35,46.48415646]
[1741380018542,0.033,145.36,145.35,53.36405646]
[1741380019046,0.033,145.36,145.35,46.48415646]
[1741380019256,0.033,145.36,145.29,10.06]
[1741380019450,46.51715646,145.36,145.29,56.54415646]
[1741380019759,20.0,145.31,145.16,13.1584]
[1741380020056,18.64964886,145.29,145.14,1.6271]
[1741380020275,0.75233003,145.28,145.14,1.6271]
[1741380020440,0.75233003,145.28,145.14,8.5169]
[1741380020645,0.75233003,145.3,145.14,8.5169]
[1741380020862,18.64964886,145.31,145.14,8.5169]
[1741380020863,0.78233003,145.32,145.17,20.0]
[1741380021076,0.78233003,145.32,145.25,46.48415646]
[1741380021364,46.48415646,145.31,145.18,75.17380532]
[1741380021665,0.03,145.32,145.28,46.48415646]
[1741380022040,0.03,145.32,145.25,10.04]
[1741380022266,0.03,145.32,145.25,16.9245]
[1741380022463,0.03,145.32,145.25,328.9245]
[1741380022660,0.03,145.32,145.27,46.48415646]
[1741380022862,0.03,145.32,145.26,46.48415646]
[1741380023171,46.48415646,145.27,145.22,6.3009]
[1741380023464,46.48415646,145.27,145.21,46.48415646]
[1741380023465,46.48415646,145.23,145.17,16.2763]
[1741380023667,18.64964886,145.31,145.14,58.13125646]
[1741380023856,46.48415646,145.2,145.14,10.02]
[1741380024052,4.88303003,145.26,145.14,63.39395646]
[1741380024254,4.88303003,145.26,145.15,46.48415646]
[1741380024255,46.48415646,145.22,145.15,46.48415646]
[1741380024470,46.48415646,145.25,145.14,56.50415646]
[1741380024471,46.48415646,145.21,145.14,56.50415646]
[1741380024667,46.48415646,145.24,145.17,46.48415646]
[1741380024858,46.48415646,145.23,145.16,46.48415646]
[1741380025054,46.48415646,145.26,145.19,46.48415646]
[1741380025253,46.48415646,145.26,145.14,34.1345]
[1741380025254,20.0,145.3,145.15,19.68258669]
[1741380025650,0.75233003,145.29,145.15,331.68258669]
[1741380025866,0.75233003,145.29,145.15,18.64964886]
[1741380026246,46.48415646,145.24,145.14,10.02]
[1741380026472,46.48415646,145.23,145.14,6.8894]
[1741380026675,46.48415646,145.25,145.18,46.48415646]
[1741380026871,4.88213003,145.29,145.21,46.48415646]
[1741380026872,46.48415646,145.28,145.21,46.48415646]
[1741380027061,0.75233003,145.31,145.23,46.48415646]
[1741380027263,0.03,145.32,145.22,9.96]
[1741380027957,0.03,145.32,145.23,18.64964886]
[1741380028156,0.03,145.32,145.24,6.1763]
[1741380028381,0.03,145.32,145.3,46.48415646]
[1741380028673,0.03,145.32,145.31,46.48415646]
[1741380030174,0.03,145.32,145.25,70.58045646]
[1741380030480,0.03,145.32,145.29,46.48415646]
[1741380030778,0.03,145.32,145.26,56.38415646]
[1741380031068,46.51415646,145.32,145.26,56.38415646]
[1741380031377,0.03,145.32,145.29,46.48415646]
[1741380031575,0.03,145.32,145.28,46.48415646]
[1741380031883,0.03,145.32,145.26,9.9]
[1741380032088,0.03,145.32,145.26,56.38415646]
[1741380032283,46.51415646,145.32,145.26,56.38415646]
[1741380032580,46.51415646,145.32,145.24,6.1763]
[1741380032581,46.48415646,145.29,145.22,16.7591]
[1741380032780,0.03,145.32,145.24,18.64964886]
[1741380034079,0.03,145.32,145.31,46.48415646]
[1741380034278,0.03,145.32,145.31,9.8]
[1741380034863,0.03,145.32,145.31,16.6818]
[1741380035176,0.03,145.32,145.31,63.16595646]
[1741380035366,0.0001,145.32,145.31,135.85467194]
[1741380035552,0.0001,145.32,145.31,400.33870532]
[1741380035759,0.0001,145.32,145.31,381.68905646]
[1741380036873,0.0001,145.32,145.31,69.68905646]
[1741380038180,0.0001,145.32,145.31,88.33870532]
[1741380038680,0.0001,145.32,145.31,69.68905646]
[1741380039182,0.0001,145.32,145.31,88.33870532]
[1741380039389,0.0001,145.32,145.31,134.82286178]
[1741380039556,0.0001,145.34,145.32,18.64964886]
[1741380039762,0.0001,145.34,145.33,65.13380532]
[1741380040065,0.0001,145.34,145.33,377.13380532]
[1741380040287,0.0001,145.34,145.33,358.48415646]
[1741380040662,0.0001,145.34,145.33,365.36495646]
[1741380041163,0.0001,145.34,145.33,53.36495646]
[1741380041874,0.0001,145.34,145.31,6.5231]
[1741380042181,0.0001,145.34,145.29,56.12415646]
[1741380042395,0.0001,145.34,145.33,46.48415646]
[1741380043967,0.0001,145.34,145.32,46.48415646]
[1741380044179,0.0001,145.34,145.28,0.033]
[1741380044383,0.0001,145.34,145.33,46.48415646]
[1741380045396,0.0001,145.34,145.33,65.13380532]
[1741380045694,0.0001,145.34,145.33,18.64964886]
[1741380045867,0.0001,145.34,145.33,65.13380532]
[1741380046062,0.0001,145.34,145.33,72.01460532]
[1741380046402,0.0001,145.34,145.33,73.04616018]
[1741380046563,0.0001,145.34,145.33,53.36495646]
[1741380046963,0.0001,145.34,145.33,73.04626404]
[1741380047188,0.0001,145.34,145.33,385.04626404]
[1741380047507,0.0001,145.36,145.34,18.64964886]
[1741380047668,0.0001,145.36,145.35,46.48415646]
[1741380048081,0.0001,145.36,145.35,53.36405646]
[1741380050680,0.0001,145.36,145.35,9.52]
[1741380051098,0.0001,145.36,145.35,62.88405646]
[1741380052380,0.0001,145.36,145.35,81.53370532]
[1741380054379,0.033,145.45,145.37,18.64964886]
[1741380054579,0.033,145.45,145.41,46.48415646]
[1741380056002,0.033,145.45,145.43,46.48415646]
[1741380056292,0.033,145.45,145.42,55.88415646]
[1741380056521,0.033,145.45,145.42,9.4]
[1741380057203,0.033,145.45,145.42,16.2765]
[1741380057394,0.033,145.45,145.42,9.4]
[1741380057705,0.033,145.45,145.42,16.2765]
[1741380058300,0.033,145.45,145.42,9.4]
[1741380058500,0.033,145.45,145.42,16.2765]
[1741380058917,0.033,145.45,145.42,9.4]
[1741380059116,0.033,145.45,145.44,46.48415646]
[1741380059325,0.03,145.51,145.44,46.48415646]
[1741380059514,0.03,145.51,145.5,46.48415646]
[1741380059720,4.8076,145.6,145.5,55.80415646]
[1741380059925,46.48415646,145.58,145.52,46.48415646]
[1741380060230,46.48415646,145.53,145.46,15.9268]
[1741380060403,46.48415646,145.54,145.47,53.35835646]
[1741380060601,46.48415646,145.53,145.47,6.8742]
[1741380060834,4.8086,145.57,145.46,62.41095646]
[1741380060835,5.56093003,145.57,145.46,16.1945]
[1741380061009,46.48415646,145.6,145.46,16.1945]
[1741380061010,4.8084,145.58,145.5,46.48415646]
[1741380061331,46.48415646,145.55,145.48,46.48415646]
[1741380061568,46.48415646,145.5,145.41,6.6068]
[1741380061703,46.48415646,145.5,145.43,46.48415646]
[1741380061904,0.75233003,145.57,145.47,46.48415646]
[1741380062197,46.48415646,145.53,145.47,46.48415646]
[1741380062428,46.48415646,145.51,145.42,321.3]
[1741380062596,17.58283003,145.57,145.44,46.48415646]
[1741380062803,46.48415646,145.57,145.46,46.48415646]
[1741380062997,46.48415646,145.56,145.49,46.48415646]
[1741380063210,17.58153003,145.58,145.44,18.64964886]
[1741380063515,0.75233003,145.6,145.46,20.24404886]
[1741380063713,46.48415646,145.58,145.52,46.48415646]
[1741380064029,1.8152318,145.63,145.53,18.64964886]
[1741380064233,1.8152318,145.63,145.56,38.64964886]
[1741380064521,1.8152318,145.63,145.6,6.8681]
[1741380064718,1.8152318,145.63,145.61,46.48415646]
[1741380064920,1.8152318,145.63,145.62,46.48415646]
[1741380065329,48.29938826,145.63,145.55,9.26]
[1741380065509,46.48415646,145.6,145.55,9.26]
[1741380065710,1.8152318,145.63,145.57,20.0]
[1741380065914,1.8152318,145.63,145.58,39.67942418]
[1741380066134,1.8152318,145.63,145.6,312.0]
[1741380066319,1.8152318,145.63,145.62,20.0]
[1741380066519,1.8152318,145.63,145.62,9.26]
[1741380066721,1.8152318,145.63,145.62,81.26090532]
[1741380066922,3.18e-05,145.63,145.62,87.64400532]
[1741380067322,0.0300318,145.63,145.62,87.64400532]
[1741380067815,0.0300318,145.63,145.62,62.12725646]
[1741380068020,0.0300318,145.63,145.59,46.48415646]
[1741380068222,0.0300318,145.63,145.62,46.48415646]
[1741380068534,46.48415646,145.69,145.62,20.0]
[1741380068725,46.48415646,145.69,145.63,46.48415646]
[1741380069124,46.48415646,145.68,145.59,6.8686]
[1741380069329,46.48415646,145.67,145.61,46.48415646]
[1741380069525,46.48415646,145.69,145.63,46.48415646]
[1741380069731,3.60723003,145.76,145.66,46.48415646]
[1741380070029,8.40963003,145.76,145.63,20.0]
[1741380070240,46.48415646,145.64,145.51,7.7417]
[1741380070444,7.6612,145.65,145.54,46.48415646]
[1741380070643,46.48415646,145.63,145.57,46.48415646]
[1741380070834,46.48415646,145.64,145.58,46.48415646]
[1741380071160,20.0,145.64,145.54,9.34]
[1741380071354,0.75233003,145.63,145.48,9.32]
[1741380071563,23.10114886,145.6,145.43,10.23903464]
[1741380071720,20.0,145.57,145.43,10.23903464]
[1741380071919,0.75233003,145.56,145.43,6.8759]
[1741380072157,5.20383003,145.6,145.46,20.0]
[1741380072359,46.48415646,145.58,145.52,46.48415646]
[1741380072650,4.8077,145.6,145.51,46.48415646]
[1741380072857,46.48415646,145.59,145.52,46.48415646]
[1741380073160,46.48415646,145.58,145.51,46.48415646]
[1741380073361,46.48415646,145.54,145.46,18.64964886]
[1741380073532,0.75233003,145.57,145.45,6.8748]
[1741380073533,46.48415646,145.55,145.48,46.48415646]
[1741380073929,0.75233003,145.59,145.5,46.48415646]
[1741380074239,46.48415646,145.56,145.5,46.48415646]
[1741380074439,46.48415646,145.55,145.48,66.48415646]
[1741380074639,46.48415646,145.56,145.49,46.48415646]
[1741380074839,46.48415646,145.54,145.45,25.52434886]
[1741380075053,46.48415646,145.56,145.49,46.48415646]
[1741380075248,46.48415646,145.58,145.51,46.48415646]
[1741380075442,46.48415646,145.53,145.39,1.5595]
[1741380075649,46.48415646,145.47,145.39,1.5595]
[1741380076148,46.48415646,145.49,145.42,46.48415646]
[1741380076350,66.48415646,145.49,145.42,46.48415646]
[1741380076544,51.29425646,145.53,145.46,46.48415646]
[1741380076746,46.48415646,145.53,145.46,46.48415646]
[1741380077051,46.48415646,145.53,145.42,6.8766]
[1741380077052,51.29315646,145.56,145.49,46.48415646]
[1741380077352,0.75233003,145.58,145.49,312.0]
[1741380077543,46.48415646,145.57,145.5,46.48415646]
[1741380077732,46.48415646,145.56,145.49,358.48415646]
[1741380077933,46.48415646,145.57,145.5,46.48415646]
[1741380078334,20.0,145.58,145.49,312.0]
[1741380078562,46.48415646,145.57,145.5,46.48415646]
[1741380078736,46.48415646,145.57,145.5,53.35695646]
[1741380078945,46.48415646,145.57,145.5,46.48415646]
[1741380079373,0.03,145.53,145.52,66.48415646]
[1741380079753,0.03,145.53,145.5,1.5392]
[1741380079980,0.03,145.53,145.52,46.48415646]
[1741380080271,0.03,145.53,145.5,48.02335646]